[Event "Weekend I 2025"]
[Site "Uppsala, Sweden"]
[Date "2025.06.27"]
[Round "1.19"]
[White "Markov, Igor"]
[Black "Hafthorsson, Jon Ulfur"]
[Result "0-1"]
[TimeControl "90 min + increment of 30 sec starting move 1"]
[WhiteFideId "34368213"]
[BlackFideId "2323206"]
[WhiteElo "1839"]
[BlackElo "1873"]

1. Nf3 {[%clk 01:30:53]} {[%emt 00:00:05]} Nf6 {[%clk 01:30:50]} {[%emt
00:00:11]} 2. b3 {[%clk 01:31:16]} {[%emt 00:00:08]} g6 {[%clk 01:31:13]}
{[%emt 00:00:07]} 3. Bb2 {[%clk 01:31:37]} {[%emt 00:00:08]} Bg7 {[%clk
01:31:37]} {[%emt 00:00:07]} 4. c4 {[%clk 01:31:54]} {[%emt 00:00:12]} c5
{[%clk 01:31:12]} {[%emt 00:00:55]} 5. g3 {[%clk 01:31:29]} {[%emt 00:00:55]}
O-O {[%clk 01:30:58]} {[%emt 00:00:45]} 6. Bg2 {[%clk 01:31:53]} {[%emt
00:00:05]} Nc6 {[%clk 01:31:00]} {[%emt 00:00:28]} 7. O-O {[%clk 01:31:58]}
{[%emt 00:00:24]} e6 {[%clk 01:29:43]} {[%emt 00:01:48]} 8. Ne5 {[%clk
01:30:15]} {[%emt 00:02:12]} d5 {[%clk 01:27:59]} {[%emt 00:02:15]} 9. d4
{[%clk 01:29:48]} {[%emt 00:00:57]} Nxd4 {[%clk 01:20:32]} {[%emt 00:07:57]} 10.
Nd3 {[%clk 01:27:41]} {[%emt 00:02:37]} b6 {[%clk 01:16:55]} {[%emt 00:04:07]}
11. b4 {[%clk 01:27:00]} {[%emt 00:01:12]} Rb8 {[%clk 01:15:10]} {[%emt
00:02:14]} 12. bxc5 {[%clk 01:26:08]} {[%emt 00:01:22]} bxc5 {[%clk 01:14:26]}
{[%emt 00:01:14]} 13. Ba3 {[%clk 01:23:02]} {[%emt 00:03:37]} Ne4 {[%clk
01:00:46]} {[%emt 00:14:08]} 14. Nxc5 {[%clk 01:20:18]} {[%emt 00:03:14]} Nxc5
{[%clk 00:59:29]} {[%emt 00:01:49]} 15. Bxc5 {[%clk 01:20:34]} {[%emt
00:00:14]} Nxe2+ {[%clk 00:59:41]} {[%emt 00:00:17]} 16. Qxe2 {[%clk 01:21:02]}
{[%emt 00:00:02]} Bxa1 {[%clk 00:59:59]} {[%emt 00:00:12]} 17. Bxf8 {[%clk
01:21:19]} {[%emt 00:00:13]} Kxf8 {[%clk 00:57:58]} {[%emt 00:02:31]} 18. cxd5
{[%clk 01:21:01]} {[%emt 00:00:48]} exd5 {[%clk 00:58:04]} {[%emt 00:00:24]} 19.
Qd2 {[%clk 01:17:36]} {[%emt 00:03:54]} Be6 {[%clk 00:54:13]} {[%emt 00:04:22]}
20. Nc3 {[%clk 01:15:25]} {[%emt 00:02:42]} Bxc3 {[%clk 00:51:57]} {[%emt
00:02:45]} 21. Qxc3 {[%clk 01:15:52]} {[%emt 00:00:02]} d4 {[%clk 00:51:38]}
{[%emt 00:00:50]} 22. Qc5+ {[%clk 01:15:56]} {[%emt 00:00:26]} Kg8 {[%clk
00:49:55]} {[%emt 00:02:12]} 23. Qxa7 {[%clk 01:15:54]} {[%emt 00:00:33]} d3
{[%clk 00:49:43]} {[%emt 00:00:41]} 24. Qe3 {[%clk 01:14:27]} {[%emt 00:01:58]}
Bxa2 {[%clk 00:48:43]} {[%emt 00:01:30]} 25. Be4 {[%clk 01:13:41]} {[%emt
00:01:16]} Bc4 {[%clk 00:34:00]} {[%emt 00:15:12]} 26. Rc1 {[%clk 01:13:15]}
{[%emt 00:00:57]} Ba6 {[%clk 00:27:15]} {[%emt 00:07:15]} 27. Rd1 {[%clk
01:13:25]} {[%emt 00:00:20]} Qf6 {[%clk 00:23:12]} {[%emt 00:04:33]} 28. Bxd3
{[%clk 01:12:48]} {[%emt 00:01:06]} Bxd3 {[%clk 00:22:52]} {[%emt 00:00:50]} 29.
Qxd3 {[%clk 01:13:08]} {[%emt 00:00:11]} Rb2 {[%clk 00:21:48]} {[%emt
00:01:34]} 30. Qe3 {[%clk 01:10:46]} {[%emt 00:02:51]} Kg7 {[%clk 00:21:36]}
{[%emt 00:00:43]} 31. h3 {[%clk 01:09:48]} {[%emt 00:01:27]} Ra2 {[%clk
00:20:29]} {[%emt 00:01:37]} 32. Rd4 {[%clk 01:08:39]} {[%emt 00:01:40]} Ra1+
{[%clk 00:20:37]} {[%emt 00:00:22]} 33. Kg2 {[%clk 01:07:12]} {[%emt 00:01:57]}
Qc6+ {[%clk 00:20:43]} {[%emt 00:00:23]} 34. Qe4 {[%clk 01:06:13]} {[%emt
00:01:31]} Qb5 {[%clk 00:17:30]} {[%emt 00:03:41]} 35. Qd3 {[%clk 01:03:38]}
{[%emt 00:03:05]} Qxd3 {[%clk 00:16:47]} {[%emt 00:01:14]} 36. Rxd3 {[%clk
01:03:54]} {[%emt 00:00:14]} h5 {[%clk 00:16:47]} {[%emt 00:00:29]} 37. Rd4
{[%clk 01:03:29]} {[%emt 00:00:56]} Ra2 {[%clk 00:17:07]} {[%emt 00:00:10]} 38.
Kf3 {[%clk 01:03:46]} {[%emt 00:00:13]} Rb2 {[%clk 00:17:00]} {[%emt 00:00:38]}
39. Ke3 {[%clk 01:03:33]} {[%emt 00:00:43]} Kf6 {[%clk 00:16:32]} {[%emt
00:00:57]} 40. h4 {[%clk 01:03:39]} {[%emt 00:00:24]} Rb3+ {[%clk 00:16:45]}
{[%emt 00:00:17]} 41. Kf4 {[%clk 01:03:41]} {[%emt 00:00:28]} Rb6 {[%clk
00:16:10]} {[%emt 00:01:05]} 42. Rc4 {[%clk 01:03:01]} {[%emt 00:01:10]} Ra6
{[%clk 00:16:30]} {[%emt 00:00:11]} 43. Re4 {[%clk 01:03:04]} {[%emt 00:00:26]}
Rb6 {[%clk 00:16:45]} {[%emt 00:00:14]} 44. f3 {[%clk 01:03:25]} {[%emt
00:00:10]} Ra6 {[%clk 00:16:57]} {[%emt 00:00:18]} 45. Rc4 {[%clk 01:03:48]}
{[%emt 00:00:06]} Rb6 {[%clk 00:17:17]} {[%emt 00:00:12]} 46. g4 {[%clk
01:04:08]} {[%emt 00:00:09]} hxg4 {[%clk 00:17:15]} {[%emt 00:00:32]} 47. fxg4
{[%clk 01:02:31]} {[%emt 00:02:07]} Rb5 {[%clk 00:17:30]} {[%emt 00:00:15]} 48.
Rc6+ {[%clk 01:02:52]} {[%emt 00:00:09]} Kg7 {[%clk 00:17:53]} {[%emt
00:00:07]} 49. Rc4 {[%clk 01:02:26]} {[%emt 00:00:57]} Ra5 {[%clk 00:18:14]}
{[%emt 00:00:08]} 50. Re4 {[%clk 01:02:41]} {[%emt 00:00:14]} Rb5 {[%clk
00:18:20]} {[%emt 00:00:24]} 51. Rd4 {[%clk 01:01:47]} {[%emt 00:01:24]} Ra5
{[%clk 00:18:31]} {[%emt 00:00:20]} 52. Ke4 {[%clk 01:01:56]} {[%emt 00:00:21]}
Rb5 {[%clk 00:18:47]} {[%emt 00:00:13]} 53. Kd3 {[%clk 01:02:01]} {[%emt
00:00:25]} Ra5 {[%clk 00:18:29]} {[%emt 00:00:49]} 54. Kc3 {[%clk 01:01:49]}
{[%emt 00:00:42]} Rc5+ {[%clk 00:17:25]} {[%emt 00:01:35]} 55. Kb4 {[%clk
01:02:04]} {[%emt 00:00:13]} Rc1 {[%clk 00:16:49]} {[%emt 00:01:06]} 56. Re4
{[%clk 01:02:19]} {[%emt 00:00:16]} Rc2 {[%clk 00:16:43]} {[%emt 00:00:36]} 57.
Re5 {[%clk 01:02:29]} {[%emt 00:00:20]} Kf6 {[%clk 00:16:58]} {[%emt 00:00:15]}
58. Re8 {[%clk 01:02:35]} {[%emt 00:00:24]} Rh2 {[%clk 00:16:46]} {[%emt
00:00:42]} 59. g5+ {[%clk 01:02:12]} {[%emt 00:00:53]} Kf5 {[%clk 00:16:32]}
{[%emt 00:00:45]} 60. Rf8 {[%clk 01:00:54]} {[%emt 00:01:48]} Rxh4+ {[%clk
00:14:45]} {[%emt 00:02:16]} 61. Kc3 {[%clk 01:01:18]} {[%emt 00:00:07]} Rh7
{[%clk 00:14:56]} {[%emt 00:00:17]} 62. Kd4 {[%clk 01:01:34]} {[%emt 00:00:13]}
Kxg5 {[%clk 00:15:15]} {[%emt 00:00:13]} 63. Ke3 {[%clk 01:02:00]} {[%emt
00:00:04]} f5 {[%clk 00:15:27]} {[%emt 00:00:19]} 64. Kf3 {[%clk 01:02:26]}
{[%emt 00:00:04]} Rh3+ {[%clk 00:15:48]} {[%emt 00:00:09]} 65. Kg2 {[%clk
01:02:48]} {[%emt 00:00:08]} Rc3 {[%clk 00:15:34]} {[%emt 00:00:43]} 66. Rg8
{[%clk 01:02:54]} {[%emt 00:00:24]} f4 {[%clk 00:15:57]} {[%emt 00:00:07]} 67.
Kf2 {[%clk 01:02:58]} {[%emt 00:00:26]} Kf5 {[%clk 00:16:13]} {[%emt 00:00:14]}
68. Kg2 {[%clk 01:03:08]} {[%emt 00:00:19]} g5 {[%clk 00:16:29]} {[%emt
00:00:15]} 69. Ra8 {[%clk 01:03:24]} {[%emt 00:00:15]} Rc2+ {[%clk 00:16:42]}
{[%emt 00:00:17]} 70. Kg1 {[%clk 01:03:46]} {[%emt 00:00:06]} Kg4 {[%clk
00:16:59]} {[%emt 00:00:14]} 71. Ra5 {[%clk 01:02:48]} {[%emt 00:01:28]} f3
{[%clk 00:17:03]} {[%emt 00:00:25]} 72. Rb5 {[%clk 01:03:14]} {[%emt 00:00:04]}
Kf4 {[%clk 00:17:26]} {[%emt 00:00:07]} 73. Ra5 {[%clk 01:03:10]} {[%emt
00:00:35]} g4 {[%clk 00:17:44]} {[%emt 00:00:12]} 74. Ra4+ {[%clk 01:03:33]}
{[%emt 00:00:08]} Kg3 {[%clk 00:17:09]} {[%emt 00:01:04]} 75. Ra1 {[%clk
01:04:00]} {[%emt 00:00:04]} Re2 {[%clk 00:16:52]} {[%emt 00:00:45]} 76. Kh1
{[%clk 01:04:19]} {[%emt 00:00:12]} Rh2+ {[%clk 00:16:59]} {[%emt 00:00:22]}
0-1

[Event "Weekend I 2025"]
[Site "Uppsala, Sweden"]
[Date "2025.06.27"]
[Round "1.4"]
[White "Morin, Jonas"]
[Black "Lilliehook, Victor"]
[Result "0-1"]
[TimeControl "90 min + increment of 30 sec starting move 1"]
[WhiteFideId "1709453"]
[BlackFideId "1752103"]
[WhiteElo "2090"]
[BlackElo "2020"]

1. e4 {[%clk 01:30:54]} {[%emt 00:00:05]} c5 {[%clk 01:30:56]} {[%emt
00:00:05]} 2. Nf3 {[%clk 01:31:06]} {[%emt 00:00:17]} Nc6 {[%clk 01:31:19]}
{[%emt 00:00:08]} 3. d4 {[%clk 01:31:06]} {[%emt 00:00:30]} cxd4 {[%clk
01:31:44]} {[%emt 00:00:06]} 4. Nxd4 {[%clk 01:31:29]} {[%emt 00:00:05]} Nf6
{[%clk 01:32:08]} {[%emt 00:00:07]} 5. Nc3 {[%clk 01:31:50]} {[%emt 00:00:09]}
e5 {[%clk 01:32:33]} {[%emt 00:00:05]} 6. Ndb5 {[%clk 01:31:59]} {[%emt
00:00:21]} d6 {[%clk 01:32:57]} {[%emt 00:00:06]} 7. Bg5 {[%clk 01:31:50]}
{[%emt 00:00:39]} a6 {[%clk 01:33:22]} {[%emt 00:00:05]} 8. Na3 {[%clk
01:32:13]} {[%emt 00:00:06]} b5 {[%clk 01:33:49]} {[%emt 00:00:04]} 9. Nd5
{[%clk 01:31:50]} {[%emt 00:00:52]} Be7 {[%clk 01:34:16]} {[%emt 00:00:04]} 10.
Bxf6 {[%clk 01:32:10]} {[%emt 00:00:09]} Bxf6 {[%clk 01:34:45]} {[%emt
00:00:02]} 11. c3 {[%clk 01:32:21]} {[%emt 00:00:20]} Ne7 {[%clk 01:35:10]}
{[%emt 00:00:04]} 12. Nxf6+ {[%clk 01:19:21]} {[%emt 00:13:29]} gxf6 {[%clk
01:35:38]} {[%emt 00:00:02]} 13. Nc2 {[%clk 01:19:21]} {[%emt 00:00:30]} Bb7
{[%clk 01:35:55]} {[%emt 00:00:14]} 14. Bd3 {[%clk 01:18:17]} {[%emt 00:01:33]}
d5 {[%clk 01:36:11]} {[%emt 00:00:14]} 15. exd5 {[%clk 01:12:00]} {[%emt
00:06:47]} Qxd5 {[%clk 01:36:11]} {[%emt 00:00:31]} 16. Ne3 {[%clk 01:10:56]}
{[%emt 00:01:33]} Qe6 {[%clk 01:36:36]} {[%emt 00:00:06]} 17. Qb3 {[%clk
00:55:52]} {[%emt 00:15:34]} Qxb3 {[%clk 01:13:48]} {[%emt 00:23:19]} 18. axb3
{[%clk 00:55:59]} {[%emt 00:00:22]} Ng6 {[%clk 01:09:58]} {[%emt 00:04:20]} 19.
O-O-O {[%clk 00:50:35]} {[%emt 00:05:53]} O-O-O {[%clk 01:03:13]} {[%emt
00:07:16]} 20. Rhe1 {[%clk 00:37:39]} {[%emt 00:13:25]} h5 {[%clk 00:42:49]}
{[%emt 00:20:55]} 21. Bf1 {[%clk 00:19:07]} {[%emt 00:19:01]} Nf4 {[%clk
00:34:21]} {[%emt 00:08:59]} 22. g3 {[%clk 00:17:08]} {[%emt 00:02:28]} Ne6
{[%clk 00:33:13]} {[%emt 00:01:38]} 23. Nf5 {[%clk 00:12:38]} {[%emt 00:05:00]}
Kc7 {[%clk 00:28:53]} {[%emt 00:04:51]} 24. Be2 {[%clk 00:09:53]} {[%emt
00:03:14]} Be4 {[%clk 00:23:47]} {[%emt 00:05:37]} 25. Bxb5 {[%clk 00:04:43]}
{[%emt 00:05:40]} Bxf5 {[%clk 00:23:02]} {[%emt 00:01:15]} 26. Bxa6 {[%clk
00:05:00]} {[%emt 00:00:13]} Ra8 {[%clk 00:20:51]} {[%emt 00:02:41]} 27. Bd3
{[%clk 00:03:29]} {[%emt 00:02:00]} Ra1+ {[%clk 00:06:26]} {[%emt 00:14:55]} 28.
Kc2 {[%clk 00:03:55]} {[%emt 00:00:05]} Bxd3+ {[%clk 00:05:20]} {[%emt
00:01:36]} 29. Kxd3 {[%clk 00:04:21]} {[%emt 00:00:03]} Rd8+ {[%clk 00:05:14]}
{[%emt 00:00:36]} 30. Kc2 {[%clk 00:04:38]} {[%emt 00:00:13]} Raxd1 {[%clk
00:05:10]} {[%emt 00:00:36]} 31. Rxd1 {[%clk 00:05:05]} {[%emt 00:00:01]} Rxd1
{[%clk 00:05:30]} {[%emt 00:00:09]} 32. Kxd1 {[%clk 00:05:28]} {[%emt
00:00:08]} Nc5 {[%clk 00:03:52]} {[%emt 00:02:09]} 33. b4 {[%clk 00:04:17]}
{[%emt 00:01:41]} Nd3 {[%clk 00:04:11]} {[%emt 00:00:12]} 34. Ke2 {[%clk
00:04:45]} {[%emt 00:00:01]} Nxb2 {[%clk 00:03:59]} {[%emt 00:00:43]} 35. f3
{[%clk 00:05:13]} {[%emt 00:00:01]} f5 {[%clk 00:02:55]} {[%emt 00:01:34]} 36.
h3 {[%clk 00:05:40]} {[%emt 00:00:02]} f6 {[%clk 00:01:10]} {[%emt 00:02:15]}
37. h4 {[%clk 00:04:36]} {[%emt 00:01:33]} Kd6 {[%clk 00:00:39]} {[%emt
00:01:02]} 38. b5 {[%clk 00:03:02]} {[%emt 00:02:04]} Na4 {[%clk 00:00:42]}
{[%emt 00:00:28]} 39. Kd3 {[%clk 00:02:01]} {[%emt 00:01:30]} e4+ {[%clk
00:00:40]} {[%emt 00:00:33]} 40. fxe4 {[%clk 00:02:07]} {[%emt 00:00:24]} Nc5+
{[%clk 00:01:00]} {[%emt 00:00:10]} 41. Ke3 {[%clk 00:02:14]} {[%emt 00:00:23]}
Nxe4 {[%clk 00:00:36]} {[%emt 00:00:54]} 42. c4 {[%clk 00:02:20]} {[%emt
00:00:24]} Ke5 {[%clk 00:00:32]} {[%emt 00:00:35]} 43. b6 {[%clk 00:02:02]}
{[%emt 00:00:47]} Nc5 {[%clk 00:00:43]} {[%emt 00:00:19]} 44. Kf3 {[%clk
00:02:25]} {[%emt 00:00:07]} f4 {[%clk 00:00:36]} {[%emt 00:00:37]} 45. gxf4+
{[%clk 00:01:45]} {[%emt 00:01:10]} Kd4 {[%clk 00:00:55]} {[%emt 00:00:11]} 46.
Ke2 {[%clk 00:01:09]} {[%emt 00:01:06]} f5 {[%clk 00:00:53]} {[%emt 00:00:32]}
0-1

[Event "Weekend I 2025"]
[Site "Uppsala, Sweden"]
[Date "2025.06.27"]
[Round "1.20"]
[White "Eriksson, Sanna"]
[Black "Backstrom, Viggo"]
[Result "1/2-1/2"]
[TimeControl "90 min + increment of 30 sec starting move 1"]
[WhiteFideId "1717014"]
[BlackFideId "1739719"]
[WhiteElo "1867"]
[BlackElo "1839"]

1. e4 {[%clk 01:30:57]} {[%emt 00:00:03]} c5 {[%clk 01:30:54]} {[%emt
00:00:07]} 2. Nf3 {[%clk 01:31:22]} {[%emt 00:00:05]} e6 {[%clk 01:31:12]}
{[%emt 00:00:12]} 3. Nc3 {[%clk 01:29:50]} {[%emt 00:02:02]} Nc6 {[%clk
01:31:28]} {[%emt 00:00:13]} 4. Bb5 {[%clk 01:28:54]} {[%emt 00:01:26]} Qc7
{[%clk 01:30:34]} {[%emt 00:01:24]} 5. O-O {[%clk 01:28:39]} {[%emt 00:00:45]}
Nf6 {[%clk 01:29:30]} {[%emt 00:01:34]} 6. Re1 {[%clk 01:27:41]} {[%emt
00:01:28]} Be7 {[%clk 01:26:56]} {[%emt 00:03:04]} 7. Bxc6 {[%clk 01:26:27]}
{[%emt 00:01:45]} bxc6 {[%clk 01:25:44]} {[%emt 00:01:41]} 8. e5 {[%clk
01:24:36]} {[%emt 00:02:21]} Nd5 {[%clk 01:25:45]} {[%emt 00:00:30]} 9. Ne4
{[%clk 01:24:19]} {[%emt 00:00:46]} O-O {[%clk 01:24:08]} {[%emt 00:02:06]} 10.
d3 {[%clk 01:23:46]} {[%emt 00:01:03]} f6 {[%clk 01:18:57]} {[%emt 00:05:42]}
11. c4 {[%clk 01:22:01]} {[%emt 00:02:15]} Nb6 {[%clk 01:18:35]} {[%emt
00:00:52]} 12. exf6 {[%clk 01:22:07]} {[%emt 00:00:23]} Bxf6 {[%clk 01:18:50]}
{[%emt 00:00:15]} 13. Nxc5 {[%clk 01:21:06]} {[%emt 00:01:32]} e5 {[%clk
01:13:29]} {[%emt 00:05:50]} 14. Ne4 {[%clk 01:17:57]} {[%emt 00:03:40]} Be7
{[%clk 01:08:18]} {[%emt 00:05:40]} 15. Bg5 {[%clk 01:10:52]} {[%emt 00:07:36]}
d5 {[%clk 01:01:16]} {[%emt 00:07:32]} 16. Bxe7 {[%clk 01:08:59]} {[%emt
00:02:24]} Qxe7 {[%clk 01:01:37]} {[%emt 00:00:18]} 17. cxd5 {[%clk 01:08:27]}
{[%emt 00:00:52]} cxd5 {[%clk 01:00:56]} {[%emt 00:01:10]} 18. Ned2 {[%clk
00:57:59]} {[%emt 00:10:59]} Bg4 {[%clk 00:57:49]} {[%emt 00:03:37]} 19. Qb3
{[%clk 00:54:11]} {[%emt 00:04:18]} Rf5 {[%clk 00:45:17]} {[%emt 00:13:02]} 20.
d4 {[%clk 00:43:50]} {[%emt 00:10:51]} Bxf3 {[%clk 00:40:24]} {[%emt 00:05:23]}
21. Nxf3 {[%clk 00:43:35]} {[%emt 00:00:44]} e4 {[%clk 00:40:21]} {[%emt
00:00:33]} 22. Ne5 {[%clk 00:40:11]} {[%emt 00:03:55]} Kh8 {[%clk 00:33:37]}
{[%emt 00:07:13]} 23. Rac1 {[%clk 00:31:52]} {[%emt 00:08:49]} Qh4 {[%clk
00:31:08]} {[%emt 00:02:59]} 24. Qg3 {[%clk 00:31:16]} {[%emt 00:01:07]} Qxg3
{[%clk 00:24:22]} {[%emt 00:07:16]} 25. hxg3 {[%clk 00:31:07]} {[%emt
00:00:39]} Rff8 {[%clk 00:18:08]} {[%emt 00:06:43]} 26. f3 {[%clk 00:30:37]}
{[%emt 00:01:00]} exf3 {[%clk 00:17:52]} {[%emt 00:00:46]} 27. gxf3 {[%clk
00:31:00]} {[%emt 00:00:08]} Rac8 {[%clk 00:17:48]} {[%emt 00:00:34]} 28. Kg2
{[%clk 00:30:48]} {[%emt 00:00:42]} Na4 {[%clk 00:15:44]} {[%emt 00:02:34]} 29.
Rxc8 {[%clk 00:27:39]} {[%emt 00:03:39]} Rxc8 {[%clk 00:16:06]} {[%emt
00:00:08]} 30. Re2 {[%clk 00:27:00]} {[%emt 00:01:09]} Kg8 {[%clk 00:14:52]}
{[%emt 00:01:44]} 31. g4 {[%clk 00:26:39]} {[%emt 00:00:51]} Rb8 {[%clk
00:13:11]} {[%emt 00:02:11]} 32. Nc6 {[%clk 00:24:45]} {[%emt 00:02:24]} Rb7
{[%clk 00:11:49]} {[%emt 00:01:53]} 33. Ne7+ {[%clk 00:25:02]} {[%emt
00:00:13]} Kf7 {[%clk 00:12:08]} {[%emt 00:00:10]} 34. Nxd5 {[%clk 00:24:59]}
{[%emt 00:00:33]} Nxb2 {[%clk 00:12:18]} {[%emt 00:00:19]} 35. Nc3 {[%clk
00:23:54]} {[%emt 00:01:36]} Nc4 {[%clk 00:11:04]} {[%emt 00:01:44]} 36. Kg3
{[%clk 00:21:57]} {[%emt 00:02:26]} Rd7 {[%clk 00:10:45]} {[%emt 00:00:50]} 37.
d5 {[%clk 00:21:59]} {[%emt 00:00:28]} g5 {[%clk 00:08:10]} {[%emt 00:03:04]}
38. f4 {[%clk 00:19:53]} {[%emt 00:02:36]} gxf4+ {[%clk 00:08:21]} {[%emt
00:00:20]} 39. Kxf4 {[%clk 00:20:13]} {[%emt 00:00:10]} Nb6 {[%clk 00:06:37]}
{[%emt 00:02:14]} 40. Rd2 {[%clk 00:18:27]} {[%emt 00:02:18]} Kg6 {[%clk
00:05:56]} {[%emt 00:01:09]} 41. Rd4 {[%clk 00:16:50]} {[%emt 00:02:07]} h5
{[%clk 00:04:28]} {[%emt 00:01:58]} 42. gxh5+ {[%clk 00:17:06]} {[%emt
00:00:14]} Kxh5 {[%clk 00:04:53]} {[%emt 00:00:04]} 43. Kf5 {[%clk 00:16:40]}
{[%emt 00:00:57]} Kh6 {[%clk 00:04:46]} {[%emt 00:00:36]} 44. a4 {[%clk
00:15:59]} {[%emt 00:01:12]} Kg7 {[%clk 00:04:23]} {[%emt 00:00:52]} 45. Ke6
{[%clk 00:12:47]} {[%emt 00:03:43]} Kf8 {[%clk 00:04:00]} {[%emt 00:00:54]} 46.
a5 {[%clk 00:12:48]} {[%emt 00:00:28]} Re7+ {[%clk 00:04:21]} {[%emt 00:00:09]}
47. Kf5 {[%clk 00:12:03]} {[%emt 00:01:15]} Nd7 {[%clk 00:04:20]} {[%emt
00:00:30]} 48. d6 {[%clk 00:10:57]} {[%emt 00:01:36]} Re5+ {[%clk 00:04:39]}
{[%emt 00:00:11]} 49. Kg6 {[%clk 00:09:50]} {[%emt 00:01:37]} Rxa5 {[%clk
00:04:45]} {[%emt 00:00:25]} 50. Rf4+ {[%clk 00:09:14]} {[%emt 00:01:08]} Ke8
{[%clk 00:04:56]} {[%emt 00:00:26]} 51. Re4+ {[%clk 00:07:39]} {[%emt
00:01:57]} Re5 {[%clk 00:04:28]} {[%emt 00:01:06]} 52. Rxe5+ {[%clk 00:07:42]}
{[%emt 00:00:18]} Nxe5+ {[%clk 00:04:51]} {[%emt 00:00:07]} 1/2-1/2